bitfinex/quotes_BTCUSD_20250525
["timestamp","ask_amount","ask_price","bid_price","bid_amount"]
[1748176572920,0.18436895,107270.0,107260.0,0.20052]
[1748176573147,0.19551297,107270.0,107260.0,0.34904]
[1748176573967,0.18065258,107270.0,107260.0,0.34904]
[1748176575131,0.11628061,107270.0,107260.0,0.34904]
[1748176579757,0.11628061,107270.0,107260.0,0.33354]
[1748176579959,0.11628061,107270.0,107260.0,0.34934]
[1748176581394,0.10173976,107270.0,107260.0,0.33354]
[1748176582506,0.10173976,107270.0,107260.0,0.35014]
[1748176583165,0.11660015,107270.0,107260.0,0.33354]
[1748176586326,0.11660015,107270.0,107260.0,0.31764]
[1748176586544,0.13160015,107270.0,107260.0,0.31764]
[1748176587802,0.11660015,107270.0,107260.0,0.31764]
[1748176591083,0.11660015,107270.0,107260.0,0.33364]
[1748176596289,0.11660015,107270.0,107260.0,0.31764]
[1748176596872,0.18095614,107270.0,107260.0,0.31764]
[1748176597986,0.19595614,107270.0,107260.0,0.31764]
[1748176601231,0.18095614,107270.0,107260.0,0.31764]
[1748176602872,0.16981212,107270.0,107260.0,0.33364]
[1748176606727,0.16981212,107270.0,107260.0,1.822347]
[1748176606939,0.16981212,107270.0,107260.0,3.49910552]
[1748176606940,0.08026656,107270.0,107260.0,3.49910552]
[1748176607096,0.08026656,107270.0,107260.0,4.446168]
[1748176607305,0.06540617,107270.0,107260.0,3.219614]
[1748176607512,0.06540617,107270.0,107260.0,1.859126]
[1748176608182,0.06540617,107270.0,107260.0,1.835914]
[1748176609633,0.00105018,107270.0,107260.0,1.835914]
[1748176614034,0.00105018,107270.0,107260.0,1.149981]
[1748176614411,0.00105018,107270.0,107260.0,1.035868]
[1748176614997,0.09059574,107270.0,107260.0,0.997644]
[1748176621678,0.00105018,107270.0,107260.0,0.997644]
[1748176622902,0.00105018,107270.0,107260.0,0.84714846]
[1748176624171,0.00105018,107270.0,107260.0,0.99598846]
[1748176629181,5.018e-05,107270.0,107260.0,0.99698846]
[1748176629601,5.018e-05,107270.0,107260.0,0.99798846]
[1748176631965,5.018e-05,107270.0,107260.0,0.84914846]
[1748176632166,5.018e-05,107270.0,107260.0,0.99798846]
[1748176638476,5.018e-05,107270.0,107260.0,1.33282846]
[1748176640637,5.018e-05,107270.0,107260.0,1.152884]
[1748176640850,5.018e-05,107270.0,107260.0,1.301724]
[1748176641925,5.018e-05,107270.0,107260.0,1.318224]
[1748176642142,5.018e-05,107270.0,107260.0,1.152884]
[1748176642350,0.10509574,107270.0,107260.0,0.984444]
[1748176642517,0.12059574,107270.0,107260.0,1.301364]
[1748176649674,0.12059574,107270.0,107260.0,0.966524]
[1748176653249,0.12059574,107270.0,107260.0,0.51008]
[1748176653453,0.12059574,107270.0,107260.0,0.65892]
[1748176661104,0.08959574,107270.0,107260.0,0.65892]
[1748176661304,0.08959574,107270.0,107260.0,1.941915]
[1748176661503,0.08959574,107270.0,107260.0,1.444745]
[1748176661876,0.08959574,107270.0,107260.0,1.295268]
[1748176662078,0.10529574,107270.0,107260.0,1.295268]
[1748176663594,0.08959574,107270.0,107260.0,1.295268]
[1748176664444,0.08959574,107270.0,107260.0,1.310468]
[1748176664718,0.08959574,107270.0,107260.0,1.326568]
[1748176665224,0.08959574,107270.0,107260.0,1.310468]
[1748176665642,0.08959574,107270.0,107260.0,1.295268]
[1748176669583,0.10529574,107270.0,107260.0,1.295268]
[1748176671365,0.10529574,107270.0,107260.0,1.256261]
[1748176675185,0.10529574,107270.0,107260.0,1.193222]
[1748176676549,0.10529574,107270.0,107260.0,1.182204]
[1748176677266,0.08959574,107270.0,107260.0,1.182204]
[1748176678601,0.10499574,107270.0,107260.0,1.182204]
[1748176678903,5.018e-05,107270.0,107260.0,1.214004]
[1748176680090,5.018e-05,107270.0,107260.0,0.877878]
[1748176680337,5.018e-05,107270.0,107260.0,0.816896]
[1748176680556,5.018e-05,107270.0,107260.0,0.784044]
[1748176682230,0.08959574,107270.0,107260.0,0.784044]
[1748176683321,0.08959574,107270.0,107260.0,0.764997]
[1748176683558,0.10479574,107270.0,107260.0,0.65892]
[1748176683771,0.12109574,107270.0,107260.0,0.51008]
[1748176684172,0.13224926,107270.0,107260.0,0.65892]
[1748176684533,0.13224926,107270.0,107260.0,0.65856]
[1748176685721,0.11594926,107270.0,107260.0,0.879971]
[1748176688046,0.11594926,107270.0,107260.0,0.912471]
[1748176688047,0.10074926,107270.0,107260.0,0.912471]
[1748176688901,0.08959574,107270.0,107260.0,0.912471]
[1748176692779,5.018e-05,107270.0,107260.0,0.912471]
[1748176704402,5.018e-05,107270.0,107260.0,0.912031]
[1748176710327,5.018e-05,107270.0,107260.0,0.93697236]
[1748176710669,5.018e-05,107270.0,107260.0,0.96489536]
[1748176715110,5.018e-05,107270.0,107260.0,0.81605536]
[1748176715335,5.018e-05,107270.0,107260.0,0.96485536]
[1748176721243,5.018e-05,107270.0,107260.0,0.98957088]
[1748176721444,5.018e-05,107270.0,107260.0,1.05440092]
[1748176727827,5.018e-05,107270.0,107260.0,1.05490092]
[1748176728837,5.018e-05,107270.0,107260.0,1.47080092]
[1748176740974,5.018e-05,107270.0,107260.0,1.49551644]
[1748176741466,5.018e-05,107270.0,107260.0,1.56005729]
[1748176742504,5.018e-05,107270.0,107260.0,1.55905729]
[1748176742911,5.018e-05,107270.0,107260.0,1.57982799]
[1748176743115,5.018e-05,107270.0,107260.0,1.57882799]
[1748176744507,5.018e-05,107270.0,107260.0,1.58582799]
[1748176751469,5.018e-05,107270.0,107260.0,1.56111247]
[1748176757756,5.018e-05,107270.0,107260.0,1.58582799]
[1748176758433,5.018e-05,107270.0,107260.0,1.59582799]
[1748176759739,5.018e-05,107270.0,107260.0,1.58105729]
[1748176759951,5.018e-05,107270.0,107260.0,1.60247594]
[1748176763203,5.018e-05,107270.0,107260.0,1.60243594]
[1748176764083,5.018e-05,107270.0,107260.0,1.93711594]
[1748176764319,5.018e-05,107270.0,107260.0,1.91240042]
[1748176766915,5.018e-05,107270.0,107260.0,2.91240042]
[1748176770915,0.0309,107300.0,107280.0,0.01454085]
[1748176771132,0.03095024,107300.0,107290.0,5.30496801]
[1748176771354,0.03095024,107300.0,107290.0,5.30263856]
[1748176772071,0.03095024,107300.0,107290.0,5.71853856]
[1748176772425,0.01145672,107300.0,107290.0,5.72053856]
[1748176772624,0.01145672,107300.0,107290.0,5.74844856]
[1748176773138,0.01145672,107300.0,107290.0,5.75044856]
[1748176774855,0.01145672,107300.0,107290.0,6.09044856]
[1748176775423,0.02785672,107300.0,107290.0,6.09044856]
[1748176776617,0.02785672,107300.0,107290.0,6.42512856]
[1748176776947,0.07511384,107310.0,107300.0,0.34]
[1748176777125,0.07511384,107310.0,107300.0,5.47645926]
[1748176777950,0.07511384,107330.0,107300.0,5.47645926]
[1748176778080,0.07511384,107330.0,107310.0,3.090699]
[1748176778293,0.07511384,107330.0,107320.0,0.31508]
[1748176778510,0.07511384,107330.0,107320.0,1.6040198]
[1748176779141,0.07611384,107330.0,107320.0,1.6040198]
[1748176779356,0.07711384,107330.0,107320.0,1.4480378]
[1748176779565,0.07611384,107330.0,107320.0,1.4480378]
[1748176779914,0.10981384,107330.0,107320.0,1.4480378]
[1748176780849,0.0347,107330.0,107320.0,1.7880378]
[1748176781280,0.0337,107330.0,107320.0,1.7880378]
[1748176781608,0.0357,107330.0,107320.0,1.7880378]
[1748176786338,0.0444068,107330.0,107320.0,1.7497048]
[1748176786556,0.0444068,107330.0,107320.0,1.7153088]
[1748176787143,0.0444068,107330.0,107320.0,1.6877808]
[1748176787503,0.0444068,107330.0,107320.0,1.2675098]
[1748176787705,0.0444068,107330.0,107320.0,1.3231898]
[1748176788950,0.0444068,107330.0,107320.0,1.1879858]
[1748176799713,0.0444068,107330.0,107320.0,1.0462968]
[1748176807480,0.0127068,107330.0,107320.0,1.0462968]
[1748176807905,0.0127068,107330.0,107320.0,1.0622968]
[1748176808370,0.0127068,107330.0,107320.0,1.0783968]
[1748176808590,0.0127068,107330.0,107320.0,1.12694819]
[1748176808818,0.0127068,107330.0,107320.0,1.10298596]
[1748176809032,0.004,107330.0,107320.0,1.10298596]
[1748176809252,0.1034299,107350.0,107320.0,1.08698596]
[1748176809486,0.1034299,107350.0,107340.0,0.34]
[1748176809487,0.19297546,107350.0,107340.0,0.34]
[1748176809733,0.19297546,107350.0,107340.0,0.48876]
[1748176809937,0.20168604,107350.0,107340.0,0.48876]
[1748176810160,0.18682565,107350.0,107340.0,0.48876]
[1748176810393,0.1745566,107350.0,107340.0,0.956807]
[1748176810590,0.1581566,107350.0,107340.0,0.956807]
[1748176810813,0.15820685,107350.0,107340.0,0.956807]
[1748176811466,0.15920685,107350.0,107340.0,0.956807]
[1748176811691,0.14330685,107350.0,107340.0,0.956807]
[1748176811899,0.14230685,107350.0,107340.0,0.956807]
[1748176812135,0.10945934,107350.0,107340.0,0.956807]
[1748176812346,0.11545934,107350.0,107340.0,0.956807]
[1748176812624,0.11145934,107350.0,107340.0,0.956807]
[1748176813028,0.11345934,107350.0,107340.0,0.956807]
[1748176813255,0.10230639,107350.0,107340.0,0.956807]
[1748176814913,0.10230639,107350.0,107340.0,0.972107]
[1748176815812,0.10030639,107350.0,107340.0,0.972107]
[1748176816253,0.09930639,107350.0,107340.0,0.972107]
[1748176816537,0.00976083,107350.0,107340.0,0.987407]
[1748176816747,0.00976083,107350.0,107340.0,1.03595839]
[1748176817392,0.00876083,107350.0,107340.0,1.03595839]
[1748176817618,0.00105025,107350.0,107340.0,1.03595839]
[1748176818038,5.025e-05,107350.0,107340.0,1.12550395]
[1748176818248,5.025e-05,107350.0,107340.0,1.14122294]
[1748176818890,5.025e-05,107350.0,107340.0,1.14322294]
[1748176820353,5.025e-05,107350.0,107340.0,1.15776379]
[1748176820583,0.13936135,107390.0,107370.0,0.0159]
[1748176820811,0.10846376,107390.0,107380.0,1.933973]
[1748176821248,0.10846376,107390.0,107380.0,1.949873]
[1748176821503,0.03334992,107390.0,107380.0,1.965673]
[1748176821726,0.03334992,107390.0,107380.0,2.05521856]
[1748176821944,0.03534992,107390.0,107380.0,2.08310756]
[1748176822377,0.03334992,107390.0,107380.0,2.08310756]
[1748176822615,0.03734992,107390.0,107380.0,2.08310756]
[1748176822851,0.03334992,107390.0,107380.0,2.333562]
[1748176823290,0.03334992,107390.0,107380.0,2.003059]
[1748176823514,0.03334992,107390.0,107380.0,2.15906]
[1748176824600,0.00050241,107390.0,107380.0,2.17456]
[1748176824812,0.01670241,107390.0,107380.0,0.822812]
[1748176825659,0.03210241,107390.0,107380.0,0.490598]
[1748176825865,0.03210241,107390.0,107380.0,0.34]
[1748176826072,0.0166,107380.0,107370.0,0.3346]
[1748176826281,0.0166,107380.0,107370.0,0.84728]
[1748176826496,0.0166,107380.0,107370.0,0.793964]
[1748176826744,0.12154556,107380.0,107370.0,0.3346]
[1748176826925,0.12154556,107380.0,107350.0,0.362419]
[1748176826926,0.0166,107370.0,107350.0,0.362419]
[1748176827146,0.12154556,107370.0,107360.0,0.3142]
[1748176827345,0.11854556,107370.0,107350.0,0.33452]
[1748176827552,0.08954556,107360.0,107350.0,0.33452]
[1748176827761,0.10494556,107360.0,107350.0,0.33452]
[1748176827981,0.10494556,107360.0,107350.0,0.64872]
[1748176828194,0.10494556,107360.0,107350.0,0.99172]
[1748176828419,0.10494556,107360.0,107350.0,0.67752]
[1748176828628,0.10494556,107360.0,107350.0,0.98872]
[1748176828857,0.10494556,107360.0,107350.0,0.67452]
[1748176829014,0.10394556,107360.0,107350.0,0.64872]
[1748176829239,0.10394556,107360.0,107350.0,0.33452]
[1748176829410,0.10394556,107360.0,107350.0,0.50004]
[1748176829411,0.11848641,107360.0,107350.0,0.50004]
[1748176829610,0.11848641,107360.0,107350.0,0.64872]
[1748176829810,0.12048641,107360.0,107350.0,0.33452]
[1748176830424,0.13708641,107360.0,107350.0,0.33452]
[1748176830623,0.14574043,107360.0,107350.0,0.33452]
[1748176830818,0.14774043,107360.0,107350.0,0.33452]
[1748176833405,0.032,107340.0,107300.0,0.45358384]
[1748176833612,0.12154556,107330.0,107310.0,0.16556]
[1748176834026,0.032,107320.0,107310.0,0.16556]
[1748176834250,0.13608641,107320.0,107310.0,0.31428]
[1748176834717,0.04654085,107310.0,107300.0,0.48328]
[1748176834916,0.11841461,107310.0,107300.0,0.98889025]
[1748176835173,0.10181461,107310.0,107300.0,0.98889025]
[1748176835804,0.11841461,107310.0,107300.0,0.84017025]
[1748176836034,0.14835546,107310.0,107300.0,0.33461025]
[1748176836245,0.15035546,107310.0,107300.0,0.50017025]
[1748176836683,0.15920849,107310.0,107300.0,0.50017025]
[1748176837540,0.14380849,107310.0,107300.0,0.50017025]
[1748176837754,0.11666764,107310.0,107300.0,0.50017025]
[1748176837993,0.11666764,107310.0,107300.0,0.92186925]
[1748176838219,0.11666764,107310.0,107300.0,0.57010841]
[1748176838220,0.01485303,107310.0,107300.0,0.57010841]
[1748176838424,0.01485303,107310.0,107300.0,0.89946841]
[1748176838851,0.01285303,107310.0,107300.0,0.93943064]
[1748176839061,0.004,107310.0,107300.0,0.93943064]
[1748176839310,0.008,107310.0,107300.0,0.91546841]
[1748176839774,0.004,107310.0,107300.0,0.94338241]
[1748176840034,0.00885303,107330.0,107310.0,0.031]
[1748176840278,0.03284751,107340.0,107330.0,0.34]
[1748176840405,0.08954556,107340.0,107330.0,0.5056]
[1748176841605,0.09354556,107340.0,107330.0,0.5056]
[1748176842424,0.09754556,107340.0,107330.0,0.5056]
[1748176843646,0.13064556,107340.0,107300.0,0.36252425]
[1748176843892,0.13064556,107340.0,107310.0,0.768148]
[1748176843893,0.08954556,107330.0,107310.0,0.768148]
[1748176844109,0.08954556,107330.0,107320.0,1.859711]
[1748176844330,0.008,107340.0,107320.0,1.757212]
[1748176844590,0.09354556,107340.0,107330.0,2.29076599]
[1748176844829,0.09354556,107340.0,107330.0,0.594493]
[1748176845227,0.08954556,107340.0,107330.0,0.594493]
[1748176845430,0.08954556,107340.0,107330.0,0.609893]
[1748176846085,0.09354556,107340.0,107330.0,0.609893]
[1748176846523,0.09254556,107340.0,107330.0,0.609893]
[1748176846978,0.08954556,107340.0,107330.0,0.609893]
[1748176847187,0.09254556,107340.0,107330.0,0.609893]
[1748176847444,0.09554556,107340.0,107330.0,0.609893]
[1748176848288,0.09554556,107340.0,107330.0,0.48876]
[1748176848871,0.09554556,107340.0,107330.0,0.651416]
[1748176850963,0.09554556,107340.0,107330.0,0.667116]
[1748176854006,0.09554556,107340.0,107330.0,0.682616]
[1748176856507,0.09554556,107340.0,107330.0,0.667116]
[1748176856706,0.09554556,107340.0,107330.0,0.651416]
[1748176858185,0.09554556,107340.0,107330.0,0.502656]
[1748176858382,0.10442961,107340.0,107330.0,0.816936]
[1748176859424,0.10442961,107340.0,107330.0,0.683476]
[1748176859631,0.10442961,107340.0,107330.0,0.832236]
[1748176860412,0.10442961,107340.0,107330.0,0.816936]
[1748176861569,0.10442961,107340.0,107330.0,0.502656]
[1748176861773,0.10442961,107340.0,107310.0,0.0153]
[1748176861774,0.13582961,107340.0,107310.0,0.0153]
[1748176862023,0.12094556,107330.0,107320.0,0.31428]
[1748176862291,0.12094556,107330.0,107320.0,0.65428]
[1748176862454,0.12094556,107330.0,107320.0,0.31428]
[1748176863002,0.1296258,107330.0,107320.0,0.31428]
[1748176863617,0.1496628,107330.0,107320.0,0.31428]
[1748176863830,0.1506628,107330.0,107320.0,0.31428]
[1748176864013,0.1516628,107330.0,107320.0,0.31428]
[1748176864789,0.1516628,107330.0,107310.0,0.34]
[1748176865003,0.1516628,107330.0,107320.0,0.31428]
[1748176865202,0.0314,107320.0,107310.0,0.14876]
[1748176865412,0.12094556,107320.0,107310.0,0.31428]
[1748176865818,0.12982961,107320.0,107310.0,0.31428]
[1748176866927,0.10958256,107320.0,107310.0,0.31428]
[1748176868103,0.11827334,107320.0,107310.0,0.31428]
[1748176871259,0.16194239,107320.0,107310.0,0.31428]
[1748176872347,0.16294239,107320.0,107310.0,0.31428]
[1748176872889,0.16394239,107320.0,107310.0,0.31428]
[1748176873850,0.14854239,107320.0,107310.0,0.31428]
[1748176874443,0.13254239,107320.0,107310.0,0.31428]
[1748176875277,0.13254239,107320.0,107310.0,1.404246]
[1748176875483,0.13254239,107320.0,107310.0,1.434846]
[1748176875694,0.12385161,107320.0,107310.0,1.434846]
[1748176876079,0.11269866,107320.0,107310.0,1.434846]
[1748176877131,0.11269866,107320.0,107310.0,1.197723]
[1748176877379,0.11269866,107320.0,107310.0,1.128446]
[1748176877574,0.11269866,107320.0,107310.0,0.897687]
[1748176884502,0.11269866,107320.0,107310.0,0.583407]
[1748176884703,0.11269866,107320.0,107310.0,0.882347]
[1748176887915,0.1213934,107320.0,107310.0,0.882347]
[1748176888533,0.11250935,107320.0,107310.0,0.882347]
[1748176889547,0.12141644,107320.0,107310.0,0.882347]
[1748176891023,0.1325503,107320.0,107310.0,0.882347]
[1748176894746,0.1325503,107320.0,107310.0,0.66954]
[1748176903003,0.1325503,107320.0,107310.0,0.930989]
[1748176903292,0.1325503,107320.0,107310.0,0.946789]
[1748176923286,0.19692103,107320.0,107310.0,0.946789]
[1748176925302,0.19692103,107320.0,107310.0,0.934413]
[1748176925483,0.19692103,107320.0,107310.0,0.769853]
[1748176925722,0.19692103,107320.0,107310.0,0.66954]
[1748176928914,0.19692103,107320.0,107310.0,0.65424]
[1748176929438,0.21176618,107320.0,107310.0,0.65424]
[1748176930053,0.21176618,107320.0,107310.0,0.66944]
[1748176930495,0.19692103,107320.0,107310.0,0.66944]
[1748176931736,0.21176618,107320.0,107310.0,0.66944]
[1748176932859,0.21176618,107320.0,107310.0,0.68564]
[1748176939542,0.19692103,107320.0,107310.0,0.68564]
[1748176943286,0.18465198,107320.0,107310.0,0.68564]
[1748176946952,0.17595724,107320.0,107310.0,0.68564]
[1748176947160,0.18467259,107320.0,107310.0,0.68564]
[1748176952583,0.18467259,107320.0,107310.0,0.53688]
[1748176952789,0.18467259,107320.0,107310.0,0.68564]
[1748176960604,0.18467259,107320.0,107310.0,0.53688]
[1748176960819,0.23161344,107320.0,107310.0,0.16548]
[1748176961026,0.23161344,107320.0,107310.0,0.31424]
[1748176961234,0.22289809,107320.0,107310.0,0.31424]
[1748176961651,0.17595724,107320.0,107310.0,0.31424]
[1748176961860,0.17595724,107320.0,107310.0,0.32934]
[1748176961861,0.17966853,107320.0,107310.0,0.32934]
[1748176963020,0.18838108,107320.0,107310.0,0.32934]
[1748176964676,0.17966853,107320.0,107310.0,0.34494]
[1748176966932,0.18837871,107320.0,107310.0,0.34494]
[1748176970389,0.08954556,107320.0,107310.0,0.34494]
[1748176971593,0.10069305,107320.0,107310.0,0.34494]
[1748176972441,0.10069305,107320.0,107310.0,0.19618]
[1748176972654,0.10069305,107320.0,107310.0,0.32938]
[1748176974972,0.10069305,107320.0,107310.0,0.34568]
[1748176984398,0.10961209,107320.0,107310.0,0.34568]
[1748176985700,0.10961209,107320.0,107310.0,0.704417]
[1748176986433,0.1183225,107320.0,107310.0,0.704417]
[1748176986970,0.1183225,107320.0,107310.0,1.044417]
[1748176992003,0.1183225,107320.0,107310.0,0.907287]
[1748177000084,0.02877694,107320.0,107310.0,0.93187616]
[1748177000493,0.02877694,107320.0,107310.0,0.907287]
[1748177001045,0.01762945,107320.0,107310.0,0.907287]
[1748177018154,0.01762945,107320.0,107310.0,0.593007]
[1748177018356,0.01762945,107320.0,107310.0,0.906287]
[1748177020370,0.00891904,107320.0,107310.0,0.906287]
[1748177020574,0.01762837,107320.0,107310.0,0.906287]
[1748177021763,0.01762837,107320.0,107310.0,0.93087616]
[1748177021965,0.01762837,107320.0,107310.0,0.95483839]
[1748177022166,0.00891904,107320.0,107310.0,0.95483839]
[1748177022744,0.00891904,107320.0,107310.0,0.93087616]
[1748177023548,0.01179525,107340.0,107320.0,0.0317]
[1748177023746,0.10134081,107340.0,107330.0,1.670089]
[1748177024231,0.02049964,107340.0,107330.0,1.670089]
[1748177024948,0.00935215,107340.0,107330.0,1.670089]
[1748177025186,0.01135215,107340.0,107330.0,1.670089]
[1748177026409,0.01335215,107340.0,107330.0,1.670089]
[1748177027429,0.01335215,107340.0,107330.0,1.540635]
[1748177027634,0.01335215,107340.0,107330.0,1.467577]
[1748177027840,0.01335215,107340.0,107330.0,0.941741]
[1748177028904,0.11859771,107340.0,107330.0,0.65328]
[1748177029139,0.13389771,107340.0,107330.0,0.34]
[1748177029351,0.13389771,107340.0,107300.0,0.47606025]
[1748177029352,0.11743856,107340.0,107300.0,0.47606025]
[1748177029556,0.10408641,107330.0,107320.0,0.16452]
[1748177029963,0.13508641,107330.0,107320.0,0.16452]
[1748177030135,0.10408641,107330.0,107320.0,0.16452]
[1748177030351,0.1127908,107330.0,107320.0,0.16452]
[1748177030636,0.1434908,107330.0,107320.0,0.16452]
[1748177030837,0.15835469,107330.0,107320.0,0.16452]
[1748177031493,0.15935469,107330.0,107320.0,0.16452]
[1748177032110,0.16035469,107330.0,107320.0,0.16452]
[1748177032721,0.04524085,107320.0,107310.0,0.16452]
[1748177032953,0.0307,107310.0,107300.0,0.16457025]
[1748177033126,0.13543417,107310.0,107300.0,0.16457025]
[1748177034752,0.13543417,107310.0,107300.0,5.025e-05]
[1748177034978,0.14433841,107310.0,107300.0,5.025e-05]
[1748177035214,0.14533841,107310.0,107300.0,5.025e-05]
[1748177035661,0.16016117,107310.0,107300.0,0.00105025]
[1748177035883,0.16016117,107310.0,107300.0,5.025e-05]
[1748177036098,0.16316117,107310.0,107300.0,5.025e-05]
[1748177036321,0.14806117,107310.0,107300.0,5.025e-05]
[1748177036584,0.13246117,107310.0,107300.0,5.025e-05]
[1748177037000,0.11792032,107310.0,107300.0,5.025e-05]
[1748177037213,0.11421022,107310.0,107300.0,5.025e-05]
[1748177037433,0.11321022,107310.0,107300.0,5.025e-05]
[1748177037650,0.11621022,107310.0,107300.0,5.025e-05]
[1748177037850,0.14767142,107310.0,107300.0,5.025e-05]
[1748177038386,0.17867142,107310.0,107300.0,5.025e-05]
[1748177039036,0.17867142,107310.0,107290.0,0.64768]
[1748177039192,0.08954556,107300.0,107290.0,0.6478207]
[1748177040514,0.0984498,107300.0,107290.0,0.6478207]
[1748177040714,0.0984498,107300.0,107290.0,0.6640207]
[1748177040929,0.1004498,107300.0,107290.0,0.6640207]
[1748177041755,0.1024498,107300.0,107290.0,0.6640207]
[1748177042435,0.1024498,107300.0,107290.0,0.5152607]
[1748177042611,0.1024498,107300.0,107290.0,0.6478607]
[1748177042817,0.14799065,107300.0,107290.0,0.4991007]
[1748177043743,0.14799065,107300.0,107290.0,0.3348607]
[1748177045860,0.15910331,107300.0,107290.0,0.3348607]
[1748177046070,0.15910331,107300.0,107290.0,0.0001407]
[1748177047128,1.11993565,107300.0,107290.0,0.0001407]
[1748177047334,1.1385748,107300.0,107290.0,0.0001407]
[1748177047544,1.12925514,107300.0,107290.0,0.0001407]
[1748177047756,1.04715896,107300.0,107290.0,0.0001407]
[1748177047962,1.05647819,107300.0,107290.0,0.0001407]
[1748177048223,1.03783991,107300.0,107290.0,0.0001407]
[1748177048426,0.97272607,107300.0,107290.0,0.0001407]
[1748177048646,0.94679065,107300.0,107290.0,0.0001407]
[1748177049733,1.2313438,107300.0,107290.0,0.0001407]
[1748177049943,1.06358941,107300.0,107290.0,0.0001407]
[1748177050449,1.24566364,107300.0,107290.0,0.0001407]
[1748177050679,1.15614221,107300.0,107290.0,0.0001407]
[1748177050862,1.21197221,107300.0,107290.0,0.0001407]
[1748177051012,1.21729187,107300.0,107290.0,0.0001407]
[1748177051236,1.22229187,107300.0,107290.0,0.0001407]
[1748177051438,1.22829187,107300.0,107290.0,0.0001407]
[1748177051638,1.27528504,107300.0,107290.0,0.0001407]
[1748177052069,1.22829187,107300.0,107290.0,0.0001407]
[1748177052331,1.2596457,107300.0,107290.0,0.0001407]
[1748177052837,0.01454085,107270.0,107260.0,1.0005]
[1748177053087,0.01454085,107270.0,107260.0,1.0010029]
[1748177053088,0.10473417,107270.0,107260.0,1.0010029]
[1748177053516,0.13653417,107270.0,107260.0,1.0010029]
[1748177054185,0.14643841,107270.0,107260.0,1.0010029]
[1748177054839,0.5263814,107270.0,107260.0,1.0010029]
[1748177055066,1.06147091,107270.0,107260.0,1.0010029]
[1748177055296,1.00184975,107270.0,107260.0,1.0010029]
[1748177055536,0.81540434,107270.0,107260.0,1.0010029]
[1748177055959,0.70084975,107270.0,107260.0,0.98037869]
[1748177056181,1.38582792,107270.0,107260.0,0.27923752]
[1748177056412,1.48234943,107270.0,107260.0,0.16301531]
[1748177056634,1.48934943,107270.0,107260.0,0.16401531]
[1748177057081,1.39282792,107270.0,107260.0,0.16301531]
[1748177057523,1.40958883,107270.0,107260.0,0.16301531]
[1748177057747,1.42391031,107270.0,107260.0,0.16301531]
[1748177057979,1.59011258,107270.0,107260.0,0.16401531]
[1748177058193,1.2454649,107270.0,107260.0,0.16401531]
[1748177058382,1.23614281,107270.0,107260.0,0.16401531]
[1748177058599,1.3943449,107270.0,107260.0,0.16401531]
[1748177059078,1.59943476,107270.0,107260.0,0.16401531]
[1748177059467,1.62431688,107270.0,107260.0,0.16401531]
[1748177059675,1.61499505,107270.0,107260.0,0.14219795]
[1748177059886,1.60567296,107270.0,107260.0,0.14219795]
[1748177060305,1.57146918,107270.0,107260.0,0.14219795]
[1748177062196,1.62729918,107270.0,107260.0,0.14219795]
[1748177062414,1.62729918,107270.0,107210.0,0.16538]
[1748177062415,0.01454085,107230.0,107210.0,0.19596]
[1748177062594,0.10473417,107220.0,107210.0,0.19601024]
[1748177063477,0.10473417,107220.0,107210.0,0.18091024]
[1748177063698,0.10473417,107220.0,107210.0,0.03165024]
[1748177064059,0.11363841,107220.0,107210.0,0.03165024]
[1748177065197,0.11463841,107220.0,107210.0,0.03165024]
[1748177065820,0.11663841,107220.0,107210.0,0.03165024]
[1748177067475,0.10209756,107220.0,107210.0,0.03165024]
[1748177068053,0.012552,107220.0,107210.0,0.69262624]
[1748177068407,0.012552,107220.0,107210.0,0.16335424]
[1748177068617,0.10209756,107220.0,107210.0,0.03165024]
[1748177068989,0.09319332,107220.0,107210.0,0.03165024]
[1748177072532,0.10206215,107220.0,107210.0,0.03165024]
[1748177073859,0.10206215,107220.0,107210.0,0.37165024]
[1748177074572,0.10206215,107220.0,107210.0,0.34359784]
[1748177075885,0.116603,107220.0,107190.0,0.1642]
[1748177076111,0.08954556,107210.0,107190.0,0.1642]
[1748177077043,0.08954556,107210.0,107190.0,0.17285675]
[1748177077268,0.09841439,107210.0,107190.0,0.17285675]
[1748177077463,0.09841439,107210.0,107190.0,0.20455675]
[1748177078115,0.09841439,107210.0,107200.0,0.34]
[1748177078335,0.10948831,107210.0,107200.0,0.34]
[1748177079081,0.10948831,107210.0,107190.0,0.5389]
[1748177079289,0.10948831,107210.0,107190.0,0.5369]
[1748177079469,0.10948831,107210.0,107190.0,0.5359]
[1748177079896,0.10948831,107210.0,107190.0,0.5042]
[1748177080106,0.10948831,107210.0,107200.0,0.0327]
[1748177081139,0.10948831,107210.0,107200.0,0.01087838]
[1748177082112,0.01994275,107210.0,107200.0,1.08607275]
[1748177082329,0.01994275,107210.0,107200.0,0.77905582]
[1748177082528,0.01994275,107210.0,107200.0,0.48326382]
[1748177082982,0.01994275,107210.0,107200.0,0.47459838]
[1748177083629,0.00886883,107210.0,107200.0,0.47459838]
[1748177084222,0.00886883,107210.0,107200.0,0.49079838]
[1748177085411,0.00886883,107210.0,107200.0,0.83079838]
[1748177088622,0.00886883,107210.0,107200.0,0.68187838]
[1748177088838,0.00886883,107210.0,107200.0,0.77298438]
[1748177091669,0.00886883,107210.0,107200.0,0.62186138]
[1748177100672,0.00886883,107210.0,107200.0,0.63702138]
[1748177100886,0.00886883,107210.0,107200.0,0.78594138]
[1748177114474,0.00886883,107210.0,107200.0,0.47294138]
[1748177114676,0.00886883,107210.0,107200.0,0.78590138]
[1748177116426,0.00886883,107210.0,107200.0,0.9000361]
[1748177116637,0.00886883,107210.0,107200.0,0.92399833]
[1748177116816,0.01107392,107240.0,107230.0,0.0165]
[1748177117142,0.01107392,107240.0,107230.0,1.53923604]
[1748177117314,0.01107392,107240.0,107230.0,1.552705]
[1748177117736,0.00892248,107240.0,107230.0,1.212705]
[1748177118183,0.00892248,107240.0,107230.0,1.21275518]
[1748177119143,0.00992248,107240.0,107230.0,1.21275518]
[1748177119351,0.08683552,107250.0,107230.0,1.21275518]
[1748177119576,0.17638108,107250.0,107240.0,0.00233096]
[1748177120297,0.20848108,107250.0,107240.0,0.16404]
[1748177120623,0.20848108,107250.0,107240.0,0.16637096]
[1748177121059,0.20848108,107250.0,107240.0,0.50637096]
[1748177121279,0.20848108,107250.0,107240.0,0.50404]
[1748177121485,0.20848108,107250.0,107240.0,0.65296]
[1748177121692,0.19740716,107250.0,107240.0,0.65296]
[1748177121870,0.19840716,107250.0,107240.0,0.65296]
[1748177122218,0.20140716,107250.0,107240.0,0.65296]
[1748177122402,0.20040716,107250.0,107240.0,0.65296]
[1748177122879,0.20340716,107250.0,107240.0,0.65296]
[1748177123076,0.006,107250.0,107240.0,0.65296]
[1748177123490,0.0381,107250.0,107240.0,0.65296]